Cogmind - Beta 13 @@@ ROGUE MODE // 2024.04.13 @ 21:12:25 Player: maddiematics Result: Destroyed by G-34 Mercenary via exploding Fusion Modulator Performance ------------- Evolutions (0) 0 Regions Visited (1) 200 Robots Destroyed (8) 40 Value Destroyed (177) 177 Prototype IDs (0) 0 Alien Tech Used (0) 0 Bonus (0) 0 TOTAL SCORE: 417 Bonus ------- None Cogmind --------- Core Integrity 0/250 Matter 300/300 Energy 100/100 System Corruption 0% Temperature Cool (12) Movement Core (350) Ox6 Location -10/Materials Parts ------- > --- POWER (1) -------- (None) > --- PROPULSION (2) --- (None) > --- UTILITY (2) ------ Large Storage Unit > --- WEAPON (2) ------- (None) > --- INVENTORY (15) --- Wheel Heat Sink Large Battery (200) Targeting Computer Targeting Computer Peak State ------------ > --- POWER ------------ Light Ion Engine > --- PROPULSION ------- Aluminum Leg Aluminum Leg > --- UTILITY ---------- Targeting Computer Targeting Computer > --- WEAPON ----------- Small Laser Light Assault Rifle > --- INVENTORY -------- Wheel Heat Sink Large Battery Beam Cannon [Rating: 7] Favorites ----------- Power Light Ion Engine Engine Light Ion Engine Propulsion Aluminum Leg Leg Aluminum Leg Utility Targeting Computer Storage Large Storage Unit Processor Targeting Computer Weapon Light Assault Rifle Energy Gun Small Laser Ballistic Gun Light Assault Rifle Build | -11 -10 ------- Run | Yrd Mat Slots Evolved . | . . Power . | . . Propulsion . | . . Utility . | . . Weapon . | . . Parts Attached 8 | 5 3 Power 1 | 1 . Engine 1 | 1 . Core . | . . Reactor . | . . Propulsion 2 | 2 . Treads . | . . Leg 2 | 2 . Wheel . | . . Hover . | . . Flight . | . . Utility 3 | . 3 Device . | . . Storage 1 | . 1 Processor 2 | . 2 Hackware . | . . Protection . | . . Artifact . | . . Weapon 2 | 2 . Energy Gun 1 | 1 . Energy Cannon . | . . Ballistic Gun 1 | 1 . Ballistic Cannon . | . . Launcher . | . . Special Weapon . | . . Impact Weapon . | . . Slashing Weapon . | . . Piercing Weapon . | . . Special Melee Weapon . | . . Unidentified Prototypes . | . . Parts Lost 6 | . 6 Power 1 | . 1 Propulsion 2 | . 2 Utility 1 | . 1 Weapon 2 | . 2 Highest Loss Streak 6 | . 6 To Critical Strikes . | . . Average Slot Usage (%) 88 | . 88 Engine 12 | . 12 Leg 27 | . 27 Storage 6 | . 6 Processor 13 | . 13 Energy Gun 13 | . 13 Ballistic Gun 14 | . 14 Naked Turns . | . . Heaviest Build 25 | 5 25 Greatest Support 20 | 20 20 Greatest Overweight (x) 6 | . 6 Average Overweight (x) . | . . Largest Inventory Capacity 15 | 5 15 Average Capacity 9 | 5 9 Most Carried 5 | 1 5 Average Carried 3 | . 4 Final Capacity 15 | 5 15 Final Carried 5 | 1 5 Class Distribution -------------------- 100% | Mutant Dominant Class ---------------- Mutant | -10/Materials Resources | -11 -10 ----------- Run | Yrd Mat Matter Collected 314 | 250 64 Remotely . | . . Salvage Created 197 | 50 147 Parts 8 | 1 7 Haulers Intercepted . | . . Recyclers Shooed . | . . Parts Field Recycled . | . . Retrieved Matter . | . . Parts Self-Destructed . | . . Prevented . | . . Kills | -11 -10 ------- Run | Yrd Mat Combat Hostiles Destroyed 6 | 1 5 Guns 6 | 1 5 Classes Destroyed 3 | 1 2 Watcher 2 | . 2 Swarmer 3 | . 3 Grunt 3 | 1 2 Best Kill Streak 4 | 1 4 Combat Bots Only 3 | 1 3 Max Kills in Single Turn 1 | 1 1 Gunslinging . | . . Exploded . | . . Melee . | . . Uniques/NPCs Destroyed . | . . Combat | -11 -10 -------- Run | Yrd Mat Hostile Shots Fired 67 | 9 58 Missed 17 | 3 14 Damage Taken 682 | 65 617 Core 262 | 34 228 Absorbed by Shields . | . . Core Remaining (%) 86 | 86 . Volleys Fired 37 | 10 27 Largest 2 | 1 2 Hottest 60 | 20 60 Shots Fired 64 | 10 54 Gun 64 | 10 54 Cannon . | . . Launcher . | . . Special . | . . Kinetic 37 | 10 27 Thermal 27 | . 27 Explosive . | . . Electromagnetic . | . . Robot Hit Streak 9 | 4 9 Robot Miss Streak 2 | 2 2 Penetration Max . | . . Secondary Targets 2 | . 2 Max Gunslinging Chain 1 | . 1 Shots Hit Robots 41 | 7 34 Core Hits 16 | 2 14 Critical Kills . | . . Critical Parts Destroyed . | . . Critical Strikes . | . . Melee Attacks . | . . Impact . | . . Slashing . | . . Piercing . | . . Sneak Attacks . | . . Combat Hostiles . | . . Follow-up Attacks . | . . Damage Inflicted 402 | 61 341 Guns 402 | 61 341 Cannons . | . . Explosions . | . . Melee . | . . Ramming . | . . Kinetic 169 | 61 108 Thermal 233 | . 233 Explosive . | . . Electromagnetic . | . . Impact . | . . Slashing . | . . Piercing . | . . Highest Corruption . | . . Average Corruption . | . . Corruption Purged . | . . Corruption Blocked . | . . Overload Shots . | . . Overflow Damage . | . . Projectiles . | . . Explosions . | . . Melee . | . . Knockbacks . | . . Impact . | . . Kinetic . | . . Secondary . | . . Self-Inflicted Damage . | . . Shots . | . . Rammed . | . . Targets Rammed . | . . Kicked . | . . Crushed . | . . Highest Temperature 109 | 6 109 Average Temperature 31 | 6 33 Received Heat Transfer 306 | 36 270 Siege Activations . | . . Robots Corrupted . | . . Combat Hostiles . | . . Parts Fried . | . . Impact Corruptions . | . . Robots Melted . | . . Combat Hostiles . | . . Parts Melted . | . . Heat Transferred 525 | . 525 Parts Sabotaged . | . . Parts Stolen . | . . Parts Stripped . | . . Power Chain Reactions . | . . Alert | -11 -10 ------- Run | Yrd Mat Peak Influence 177 | 20 177 Initial 13 | . 13 Average 82 | 2 96 Maximum Alert Level . | . . Low Security (%) 100 | 100 100 Level 1 . | . . Level 2 . | . . Level 3 . | . . Level 4 . | . . Level 5 . | . . High Security . | . . Max Security . | . . Squads Dispatched 1 | . 1 Investigation . | . . Extermination . | . . Reinforcement 1 | . 1 Assault . | . . Garrison . | . . Intercept . | . . Searches Triggered . | . . Construction Impeded . | . . Haulers Reinforced . | . . Active Scanning Responses . | . . Cargo Convoy Interrupts . | . . Stealth | -11 -10 --------- Run | Yrd Mat Distress Signals 1 | . 1 Communications Jammed . | . . Distress Signals . | . . Times Spotted 16 | 1 15 Peak Tracking Total 4 | 1 4 Tactical Retreats . | . . Traps | -11 -10 ------- Run | Yrd Mat Traps Triggered . | . . Indirectly . | . . Trap Hack Attempts . | . . Triggered . | . . Disarmed . | . . Reprogrammed . | . . Reused . | . . Traps Extracted . | . . Installed . | . . Triggered . | . . Machines | -11 -10 ---------- Run | Yrd Mat Machines Disabled . | . . Max in Single Turn . | . . Machines Repaired . | . . Machines Dismantled . | . . Machines Sabotaged . | . . Overloaded Fab Kills . | . . Hacking | -11 -10 --------- Run | Yrd Mat Machines Accessed 1 | . 1 Terminals 1 | . 1 Fabricators . | . . Repair Stations . | . . Recycling Units . | . . Scanalyzers . | . . Garrison Access . | . . Total Hacks 2 | . 2 Successful 2 | . 2 Failed . | . . Catastrophic . | . . Database Lockouts . | . . Manual 1 | . 1 Terminals 2 | . 2 Fabricators . | . . Repair Stations . | . . Recycling Units . | . . Scanalyzers . | . . Garrison Access . | . . Terminal Hacks 2 | . 2 Record 1 | . 1 Recall Reinforcements 1 | . 1 Fabricator Hacks . | . . Repair Station Hacks . | . . Recycling Unit Hacks . | . . Scanalyzer . | . . Garrison Access Hacks . | . . Unauthorized Hacks . | . . Terminals . | . . Fabricators . | . . Repair Stations . | . . Recycling Units . | . . Scanalyzers . | . . Garrison Access . | . . Data Cores Recovered . | . . Used . | . . Hacking Detections . | . . Full Trace Events . | . . Feedback Events . | . . Feedback Blocked . | . . Robot Schematics Acquired . | . . Robots Built . | . . Authchips . | . . Time . | . . Total Robot Build Rating . | . . Part Schematics Acquired . | . . Parts Built . | . . Authchips . | . . Time . | . . Total Part Build Rating . | . . Parts Repaired . | . . Time . | . . Parts Recycled . | . . Recycled Matter . | . . Retrieved Matter . | . . Retrieved Components . | . . Parts Scanalyzed . | . . Part Schematics Acquired . | . . Parts Damaged . | . . Bothacking | -11 -10 ------------ Run | Yrd Mat Used RIF Installer . | . . Robots Hacked . | . . Non-combat . | . . Combat . | . . Robot Hacks Applied . | . . Relay Couplers Released . | . . Fabnet Peak Effective % . | . . Robots Rewired . | . . Allies Hacked . | . . Hacks Repelled . | . . Allies | -11 -10 -------- Run | Yrd Mat Total Allies . | . . Largest Group . | . . Highest-Rated Group . | . . Highest-Rated Ally . | . . Total Orders . | . . Ally Attacks . | . . Total Damage . | . . Kills . | . . Allies Corrupted . | . . Allies Melted . | . . Intel | -11 -10 ------- Run | Yrd Mat Robot Analysis Total . | . . Derelict Logs Recovered . | . . Drone Launches . | . . Drone Recoveries . | . . Exploration | -11 -10 ------------- Run | Yrd Mat Turns Passed 785 | 119 666 Spaces Moved 486 | 90 396 Core 25 | 21 4 Treads . | . . Legs 461 | 69 392 Wheels . | . . Hover . | . . Flight . | . . Fastest Speed 50 | 50 120 Average Speed 138 | 103 146 Slowest Speed 350 | 120 350 Overloaded Moves . | . . Propulsion Burnouts . | . . Robots Hopped . | . . Cave-ins Triggered . | . . Exploration Rate (%) 25 | 9 41 Regions Visited 1 Branch Regions . Pre-discovered Areas . | . . Known Exits Taken . | . . Unknown Exits Taken 1 | 1 . Scrap Searched . | . . Spaces Dug . | . . Terrain Destroyed . | . . Melee . | . . Projectile . | . . AOE . | . . Terrain Rammed . | . . Walls Destroyed . | . . Machines Disabled . | . . Actions | -11 -10 --------- Run | Yrd Mat Total 538 | 105 433 Wait . | . . Move 485 | 89 396 Hop . | . . Pick Up 6 | 1 5 Fast Attach 8 | 5 3 Attach . | . . Detach 1 | . 1 Swap . | . . Drop 1 | . 1 Fire 37 | 10 27 Melee . | . . Ram . | . . Kick . | . . Crush . | . . Escape Stasis . | . . Rewire . | . . Trap . | . . Miscellaneous . | . . Route ------- -11/Scrapyard -10/Materials (discovered 1 exit: [*Mat]) History --------- Turn | Location | Event 2 | -11/Scrapyard | Met Revision 17 81 | -11/Scrapyard | Discovered new exit (range 8) 120 | -11/Scrapyard | Entered Materials 312 | -10/Materials | Build established: Mutant 371 | -10/Materials | Discovered new exit (range 3) 737 | -10/Materials | Core integrity fell below 50% 786 | -10/Materials | Destroyed by G-34 Mercenary via exploding Fusion Modulator Last Messages --------------- Discarded Targeting Computer. Acquired Lrg. Storage Unit. G-34 Mercenary destroyed. R-06 Scavenger collects Ion Engine. R-06 Scavenger collects Sml. Laser. K-01 Serf collects debris. Critical hit (Burn: +37). G-47 Trooper destroyed. K-01 Serf collects debris. Acquired 35 matter. K-01 Serf collects debris. K-01 Serf cleans the Terminal. Lgt. Ion Engine destroyed. M-13 Machinist repairs G-34 Mercenary. Sml. Laser destroyed. K-01 Serf cleans the Terminal. Aluminum Leg destroyed. Targeting Computer destroyed. Fusion Modulator explodes. Lgt. Assault Rifle destroyed. Map ----- +----------------------------------------------------+ | ???## ## #?????????????????????????????? | | ???# # """ #######???????????????????????? | | ???# + """ # #???????????????????????? | | ???# # """ # #???????????????????????? | | ?####+## # #???????????????????????? | | ?# # # [ #???????????????????????? | | ?# # """ # #???????????????????????? | | ?# """ # """ # """ #???????????????????????? | | ?# """ # """ # """ ##########??????????????? | | ?# """ # """ # """ ## ??????????????? | | ?# # # ## ??????????????? | | ?# ####+######+#### """ """ #????????????? | | ?####### # """ """ #????????????? | | ???????# < + """ """ #????????????? | | ???????# # #????????????? | | ???????####+######+#### "T" #????????????? | | ???????????????# # ! #????????????? | | ???????????????# ##+##########??????????? | | ???????????????# ## #??????? #??????????? | | ???????????????#!! ## #?????? #??????????? | | ???????????????#!! ## #????? #??????????? | | ???????????????#!! ## #??""" ???????????? | | ???????????????# ## #?""""" ???????????? | | ??????????????########## #??"""" ????????????? | | ??????????????# # #??"""" ????????????? | | ??????????????# @ # #???"" ?????????????? | | ??????????????# # #??? ?????????????? | | ???????######## # #???#+#?????????????? | | ???????# # gg# ##### #?????????????? | | ???????#! # """ + ###### #??????? | | ???????# """ # """ # % #??????? | | ???????# """ # """ # %########### #??????? | | ???????# """ # # ## ?????????? | | ???????# ########## ## """ #????????? | | ?????#####+############ # """ #????????? | | ?????# # """ #????????? | | ?????# + """ #????????? | | ?????# ##+#####+###+## # #????????? | | ?????# # ???# ###### #????????? | | ?????# # ???# """ #????# #????????? | | ?????#### ??# """ #????# #????????? | | ????????# "" ??# """ #????##########????????? | | ????????# "Y !?# #??????????????????????? | | ????????# "" ?# #??????????????????????? | | ????????# #########??????????????????????? | | ????????#######??????????????????????????????? | | ?????????????????????????????????????????????? | | ?????????????????????????????????????????????? | | | | | +----------------------------------------------------+ Best States ------------- Heat Dissipation 25 Energy Generation 10 Energy Capacity 125 Matter Stores 300 Matter Capacity 300 Sight Range 16 Terrain Scan Density 10 Evasion (%) 55 Targeting Accuracy 5 Item Schematics ----------------- None Robot Schematics ------------------ None Fabricated ------------ Nothing Alien Tech Used ----------------- None Achievements -------------- GoHome() Challenges ------------ None Game ------ Seed FortressTripodModule Manual? 0 Play Time 00:10:47 Cumulative 0.9 hours Start 2024.04.13 @ 21:04:13 End 2024.04.13 @ 21:12:25 Sessions 1 Manual Loads 0 Difficulty Rogue Special Mode None Game No. 2 Rogue 2 Adventurer 0 Explorer 0 Win Type - Total 0 Types 0/0/0/0/0/0/0/0/0 Lore% 0 Gallery% 2 Achievement% 3 Wizard Run 0 Options --------- Layout 1 ASCII 0 Keyboard 0 Movement Vi Keybinds 0 Fullscreen 1 Font 32/Terminus Map View 77x35 Zoom Use 0% Tactical HUD 0 Map Filters NONE Filters NONE Steam 1 RUN: 4f12ac81-b84d-4709-bc92-c14f41564ccc